[Event "*** SCC Grand Prix: Titled Tuesday Blitz"]
[Site "Chess.com"]
[Date "2020.06.02"]
[Round "2"]
[White "cassoulet"]
[Black "gui_borba"]
[Result "1/2-1/2"]
[WhiteElo "2597"]
[BlackElo "2310"]
[TimeControl "180+1"]
[EndTime "10:19:11 PDT"]
[Termination "Game drawn by repetition"]

1. e4 {[%clk 0:03:00.9]} 1... c6 {[%clk 0:03:00.3]} 2. Nc3 {[%clk 0:03:00.2]}
2... d5 {[%clk 0:03:01.2]} 3. Nf3 {[%clk 0:03:00.5]} 3... dxe4 {[%clk
0:02:59.4]} 4. Nxe4 {[%clk 0:03:01.4]} 4... Nf6 {[%clk 0:02:59.7]} 5. Nxf6+
{[%clk 0:03:00.9]} 5... exf6 {[%clk 0:02:59.7]} 6. d4 {[%clk 0:03:01.4]} 6...
Bd6 {[%clk 0:03:00.1]} 7. Bd3 {[%clk 0:02:56.7]} 7... O-O {[%clk 0:03:00.5]} 8.
O-O {[%clk 0:02:57.2]} 8... Re8 {[%clk 0:02:58.8]} 9. h3 {[%clk 0:02:55.8]} 9...
Nd7 {[%clk 0:02:57]} 10. c4 {[%clk 0:02:55.4]} 10... Nf8 {[%clk 0:02:56.7]} 11.
b3 {[%clk 0:02:53.4]} 11... Ne6 {[%clk 0:02:53.5]} 12. Be3 {[%clk 0:02:49.9]}
12... Nf4 {[%clk 0:02:50.7]} 13. Bxf4 {[%clk 0:02:50]} 13... Bxf4 {[%clk
0:02:49.7]} 14. Bc2 {[%clk 0:02:50]} 14... Be6 {[%clk 0:02:43.4]} 15. Qd3 {[%clk
0:02:49.4]} 15... g6 {[%clk 0:02:43.5]} 16. Rad1 {[%clk 0:02:43]} 16... Qa5
{[%clk 0:02:31]} 17. Qe4 {[%clk 0:01:16.5]} 17... Bc7 {[%clk 0:02:06.7]} 18. Qh4
{[%clk 0:01:16.1]} 18... Qxa2 {[%clk 0:01:51.4]} 19. Rd2 {[%clk 0:01:15.9]}
19... Qa3 {[%clk 0:01:44.8]} 20. Qxf6 {[%clk 0:01:15]} 20... Bd8 {[%clk
0:01:31.6]} 21. Qf4 {[%clk 0:01:14.4]} 21... Qe7 {[%clk 0:01:21.2]} 22. d5
{[%clk 0:01:10.3]} 22... cxd5 {[%clk 0:01:15.9]} 23. cxd5 {[%clk 0:01:10.9]}
23... Bd7 {[%clk 0:01:16.5]} 24. Re1 {[%clk 0:01:03.7]} 24... Qf6 {[%clk
0:01:04.8]} 25. Rxe8+ {[%clk 0:01:00.2]} 25... Bxe8 {[%clk 0:01:05.7]} 26. Qe3
{[%clk 0:00:57.6]} 26... Bd7 {[%clk 0:01:04.9]} 27. Ne5 {[%clk 0:00:56.9]} 27...
Qd6 {[%clk 0:01:00.5]} 28. Nc4 {[%clk 0:00:51.8]} 28... Qf6 {[%clk 0:00:57.9]}
29. d6 {[%clk 0:00:49.6]} 29... Rc8 {[%clk 0:00:55.9]} 30. Ne5 {[%clk
0:00:45.2]} 30... Qe6 {[%clk 0:00:50.2]} 31. Nxd7 {[%clk 0:00:40.5]} 31... Qxd7
{[%clk 0:00:51.1]} 32. Qxa7 {[%clk 0:00:33.8]} 32... Bg5 {[%clk 0:00:50.6]} 33.
Re2 {[%clk 0:00:20.2]} 33... Qxd6 {[%clk 0:00:48.1]} 34. Qa1 {[%clk 0:00:15.4]}
34... Bf6 {[%clk 0:00:39.6]} 35. Qe1 {[%clk 0:00:14.3]} 35... Bd4 {[%clk
0:00:32.7]} 36. Re8+ {[%clk 0:00:12.5]} 36... Rxe8 {[%clk 0:00:30.8]} 37. Qxe8+
{[%clk 0:00:13.4]} 37... Kg7 {[%clk 0:00:31.5]} 38. Qe4 {[%clk 0:00:13.8]} 38...
Qc5 {[%clk 0:00:29.2]} 39. Qe2 {[%clk 0:00:11.4]} 39... b5 {[%clk 0:00:26.6]}
40. Bd3 {[%clk 0:00:10.4]} 40... b4 {[%clk 0:00:27.1]} 41. Bc4 {[%clk
0:00:10.7]} 41... Qe5 {[%clk 0:00:27.3]} 42. Qxe5+ {[%clk 0:00:04.3]} 42... Bxe5
{[%clk 0:00:28.2]} 43. Kf1 {[%clk 0:00:05]} 43... Bc3 {[%clk 0:00:28.8]} 44. Ke2
{[%clk 0:00:05.9]} 44... Kf6 {[%clk 0:00:29.5]} 45. Kf3 {[%clk 0:00:06.5]} 45...
Ke7 {[%clk 0:00:30.1]} 46. g3 {[%clk 0:00:06.8]} 46... f6 {[%clk 0:00:29.1]} 47.
Ke4 {[%clk 0:00:07.2]} 47... Kd6 {[%clk 0:00:28.8]} 48. f3 {[%clk 0:00:07.6]}
48... f5+ {[%clk 0:00:24.8]} 49. Kd3 {[%clk 0:00:07.4]} 49... Ke5 {[%clk
0:00:23.1]} 50. f4+ {[%clk 0:00:07.1]} 50... Kd6 {[%clk 0:00:22.7]} 51. Bg8
{[%clk 0:00:06.7]} 51... h6 {[%clk 0:00:20.1]} 52. Bh7 {[%clk 0:00:06.6]} 52...
g5 {[%clk 0:00:20.7]} 53. Bxf5 {[%clk 0:00:06]} 53... gxf4 {[%clk 0:00:20.7]}
54. gxf4 {[%clk 0:00:06.9]} 54... Ke7 {[%clk 0:00:21.1]} 55. Ke4 {[%clk
0:00:07.4]} 55... Kf6 {[%clk 0:00:21.5]} 56. Bg4 {[%clk 0:00:07.7]} 56... Bd2
{[%clk 0:00:21.6]} 57. Be2 {[%clk 0:00:08.6]} 57... Bc3 {[%clk 0:00:21.9]} 58.
Bc4 {[%clk 0:00:08.8]} 58... Bd2 {[%clk 0:00:22]} 59. f5 {[%clk 0:00:09.7]}
59... Bc3 {[%clk 0:00:22.3]} 60. Be6 {[%clk 0:00:10.6]} 60... Bd2 {[%clk
0:00:22.6]} 61. Kf3 {[%clk 0:00:11.5]} 61... Bc3 {[%clk 0:00:23]} 62. Kg4 {[%clk
0:00:12.4]} 62... Bd2 {[%clk 0:00:22.6]} 63. Kh5 {[%clk 0:00:13.3]} 63... Kg7
{[%clk 0:00:21.9]} 64. Bd5 {[%clk 0:00:12.4]} 64... Kf6 {[%clk 0:00:22.2]} 65.
Be4 {[%clk 0:00:12.4]} 65... Kg7 {[%clk 0:00:22.4]} 66. Bd3 {[%clk 0:00:13]}
66... Kf6 {[%clk 0:00:22.9]} 67. Kg4 {[%clk 0:00:13.9]} 67... Kg7 {[%clk
0:00:23.3]} 68. Kf3 {[%clk 0:00:14.8]} 68... Kf6 {[%clk 0:00:23.7]} 69. Ke4
{[%clk 0:00:15.7]} 69... Bc3 {[%clk 0:00:24.2]} 70. Kd5 {[%clk 0:00:15.8]} 70...
Bd2 {[%clk 0:00:24.6]} 71. Ke4 {[%clk 0:00:16.3]} 71... Bc3 {[%clk 0:00:25]} 72.
Kf3 {[%clk 0:00:16.1]} 72... Bd2 {[%clk 0:00:25.2]} 73. Kg4 {[%clk 0:00:16.4]}
73... Bc3 {[%clk 0:00:25.5]} 74. h4 {[%clk 0:00:16.8]} 74... Bd2 {[%clk
0:00:25]} 75. Kh5 {[%clk 0:00:17.4]} 75... Kg7 {[%clk 0:00:24.6]} 76. Be4 {[%clk
0:00:17.1]} 76... Kf6 {[%clk 0:00:25]} 77. Bf3 {[%clk 0:00:17.9]} 77... Kg7
{[%clk 0:00:25.3]} 78. Be2 {[%clk 0:00:18.8]} 78... Kf6 {[%clk 0:00:25.9]} 79.
Bd3 {[%clk 0:00:19.2]} 79... Kg7 {[%clk 0:00:26.8]} 80. Kg4 {[%clk 0:00:19.3]}
80... Kf6 {[%clk 0:00:27.3]} 81. Kf3 {[%clk 0:00:18.7]} 81... Bc3 {[%clk
0:00:27.6]} 82. Kf4 {[%clk 0:00:18]} 82... Bd2+ {[%clk 0:00:27.3]} 83. Kg4
{[%clk 0:00:18.4]} 83... Bc3 {[%clk 0:00:28.2]} 84. Kh5 {[%clk 0:00:18.3]} 84...
Bd2 {[%clk 0:00:28.6]} 85. Kg4 {[%clk 0:00:17.7]} 85... Bc3 {[%clk 0:00:28.1]}
86. Kh5 {[%clk 0:00:18.2]} 86... Bd2 {[%clk 0:00:28.4]} 87. Be4 {[%clk
0:00:18.7]} 87... Kg7 {[%clk 0:00:27.8]} 88. Bd3 {[%clk 0:00:18.7]} 88... Kf6
{[%clk 0:00:28.2]} 1/2-1/2

[Event "*** SCC Grand Prix: Titled Tuesday Blitz"]
[Site "Chess.com"]
[Date "2020.06.02"]
[Round "2"]
[White "Pomegranate988"]
[Black "Anton_Demchenko"]
[Result "1/2-1/2"]
[WhiteElo "2552"]
[BlackElo "2842"]
[TimeControl "180+1"]
[EndTime "10:19:12 PDT"]
[Termination "Game drawn by stalemate"]

1. Nf3 {[%clk 0:02:59.1]} 1... Nf6 {[%clk 0:02:59.3]} 2. g3 {[%clk 0:02:58.6]}
2... g6 {[%clk 0:02:59.3]} 3. Bg2 {[%clk 0:02:58.7]} 3... Bg7 {[%clk 0:03:00.2]}
4. c4 {[%clk 0:02:58.8]} 4... O-O {[%clk 0:03:01.1]} 5. O-O {[%clk 0:02:59.1]}
5... d6 {[%clk 0:03:02]} 6. Nc3 {[%clk 0:02:58.7]} 6... Nbd7 {[%clk 0:03:02.9]}
7. b3 {[%clk 0:02:57.2]} 7... c6 {[%clk 0:02:52.6]} 8. Bb2 {[%clk 0:02:56]} 8...
a5 {[%clk 0:02:49.2]} 9. Qc2 {[%clk 0:02:53.9]} 9... e5 {[%clk 0:02:44.7]} 10.
d4 {[%clk 0:02:52.3]} 10... Re8 {[%clk 0:02:43.5]} 11. Rad1 {[%clk 0:02:47.7]}
11... e4 {[%clk 0:02:32.4]} 12. Ng5 {[%clk 0:02:46.3]} 12... d5 {[%clk
0:02:04.1]} 13. cxd5 {[%clk 0:02:41.7]} 13... cxd5 {[%clk 0:02:05]} 14. Nb5
{[%clk 0:02:41.3]} 14... Ra6 {[%clk 0:02:05.1]} 15. a4 {[%clk 0:02:37.4]} 15...
h6 {[%clk 0:02:00.8]} 16. Nh3 {[%clk 0:02:37]} 16... Rc6 {[%clk 0:01:48.4]} 17.
Qd2 {[%clk 0:02:36.9]} 17... Nf8 {[%clk 0:01:20.6]} 18. Na7 {[%clk 0:02:10]}
18... Ra6 {[%clk 0:01:20.4]} 19. Nxc8 {[%clk 0:02:09.5]} 19... Qxc8 {[%clk
0:01:21.3]} 20. Rc1 {[%clk 0:02:09.4]} 20... Qd7 {[%clk 0:01:17.5]} 21. e3
{[%clk 0:02:05]} 21... g5 {[%clk 0:01:16.5]} 22. Rc3 {[%clk 0:01:58]} 22... Ne6
{[%clk 0:01:15.8]} 23. Rfc1 {[%clk 0:01:58]} 23... Bf8 {[%clk 0:01:14.3]} 24.
Bf1 {[%clk 0:01:56.4]} 24... Bb4 {[%clk 0:01:10.2]} 25. Bxa6 {[%clk 0:01:52.8]}
25... bxa6 {[%clk 0:01:09.8]} 26. Kg2 {[%clk 0:01:52.6]} 26... Rb8 {[%clk
0:00:56.1]} 27. Qe2 {[%clk 0:01:48.1]} 27... Bxc3 {[%clk 0:00:56.1]} 28. Rxc3
{[%clk 0:01:48]} 28... Qd6 {[%clk 0:00:53.1]} 29. Ng1 {[%clk 0:01:41]} 29... Kg7
{[%clk 0:00:48.9]} 30. h3 {[%clk 0:01:40.8]} 30... h5 {[%clk 0:00:47.7]} 31. Qc2
{[%clk 0:01:37.1]} 31... Qb4 {[%clk 0:00:42]} 32. Ne2 {[%clk 0:01:32.8]} 32...
h4 {[%clk 0:00:39.1]} 33. g4 {[%clk 0:01:26.4]} 33... Kg6 {[%clk 0:00:39.1]} 34.
Qc1 {[%clk 0:01:26.3]} 34... Qb7 {[%clk 0:00:34.5]} 35. Ba3 {[%clk 0:01:25.6]}
35... Qd7 {[%clk 0:00:33.2]} 36. Qd1 {[%clk 0:01:25.4]} 36... Ng7 {[%clk
0:00:31.1]} 37. Nc1 {[%clk 0:01:24.8]} 37... Rc8 {[%clk 0:00:19.3]} 38. Rc5
{[%clk 0:01:20]} 38... Ne6 {[%clk 0:00:17.8]} 39. Rxc8 {[%clk 0:01:17.2]} 39...
Qxc8 {[%clk 0:00:17.7]} 40. Qd2 {[%clk 0:01:16]} 40... Qc7 {[%clk 0:00:17.3]}
41. Ne2 {[%clk 0:01:15.5]} 41... Nd7 {[%clk 0:00:14.9]} 42. Qc3 {[%clk
0:01:15.5]} 42... Qb6 {[%clk 0:00:12.9]} 43. Be7 {[%clk 0:01:10.3]} 43... Qc7
{[%clk 0:00:06.9]} 44. Qxc7 {[%clk 0:01:09.2]} 44... Nxc7 {[%clk 0:00:07.8]} 45.
Bd8 {[%clk 0:01:08.1]} 45... Ne6 {[%clk 0:00:08.3]} 46. Bxa5 {[%clk 0:01:08.2]}
46... f5 {[%clk 0:00:09.2]} 47. gxf5+ {[%clk 0:01:07.2]} 47... Kxf5 {[%clk
0:00:10.1]} 48. Nc3 {[%clk 0:01:07.4]} 48... g4 {[%clk 0:00:07.6]} 49. Nxd5
{[%clk 0:01:05.9]} 49... Ng5 {[%clk 0:00:07.3]} 50. hxg4+ {[%clk 0:01:05]} 50...
Kxg4 {[%clk 0:00:08.2]} 51. Nf4 {[%clk 0:01:04.7]} 51... h3+ {[%clk 0:00:08.3]}
52. Kh2 {[%clk 0:01:03.5]} 52... Nf3+ {[%clk 0:00:08.3]} 53. Kh1 {[%clk
0:01:03.4]} 53... Nxd4 {[%clk 0:00:08.9]} 54. exd4 {[%clk 0:00:59.9]} 54... Kxf4
{[%clk 0:00:09.8]} 55. Bc7+ {[%clk 0:00:56.8]} 55... Kf3 {[%clk 0:00:10.1]} 56.
d5 {[%clk 0:00:54]} 56... Kxf2 {[%clk 0:00:10.1]} 57. Kh2 {[%clk 0:00:54]} 57...
e3 {[%clk 0:00:10.5]} 58. Kxh3 {[%clk 0:00:53.2]} 58... e2 {[%clk 0:00:10.9]}
59. Bg3+ {[%clk 0:00:53]} 59... Ke3 {[%clk 0:00:10.4]} 60. d6 {[%clk 0:00:52.5]}
60... Kd3 {[%clk 0:00:10]} 61. Be1 {[%clk 0:00:51.2]} 61... Kc2 {[%clk
0:00:05.7]} 62. b4 {[%clk 0:00:51.2]} 62... Kb3 {[%clk 0:00:06.3]} 63. a5 {[%clk
0:00:50.5]} 63... Kc4 {[%clk 0:00:06.2]} 64. Kg4 {[%clk 0:00:50.7]} 64... Kd5
{[%clk 0:00:06.8]} 65. Kf5 {[%clk 0:00:51]} 65... Kxd6 {[%clk 0:00:07.4]} 66.
Ke4 {[%clk 0:00:51.1]} 66... Kc6 {[%clk 0:00:07.9]} 67. Ke3 {[%clk 0:00:50.9]}
67... Kb5 {[%clk 0:00:08.2]} 68. Kxe2 {[%clk 0:00:51.3]} 68... Nf6 {[%clk
0:00:08.5]} 69. Kd3 {[%clk 0:00:51.5]} 69... Nd5 {[%clk 0:00:09.4]} 70. Kd4
{[%clk 0:00:51]} 70... Nxb4 {[%clk 0:00:09.1]} 71. Bxb4 {[%clk 0:00:50.8]} 71...
Kxb4 {[%clk 0:00:10]} 72. Kd3 {[%clk 0:00:51.1]} 72... Kxa5 {[%clk 0:00:10.4]}
73. Kc3 {[%clk 0:00:51.5]} 73... Ka4 {[%clk 0:00:10.9]} 74. Kb2 {[%clk
0:00:51.8]} 74... Kb4 {[%clk 0:00:11.8]} 75. Ka2 {[%clk 0:00:52]} 75... Ka4
{[%clk 0:00:12.4]} 76. Kb2 {[%clk 0:00:52.4]} 76... a5 {[%clk 0:00:13.3]} 77.
Ka2 {[%clk 0:00:52.7]} 77... Kb4 {[%clk 0:00:14.2]} 78. Kb2 {[%clk 0:00:53.1]}
78... a4 {[%clk 0:00:15.1]} 79. Ka2 {[%clk 0:00:53.4]} 79... a3 {[%clk 0:00:16]}
80. Ka1 {[%clk 0:00:53.3]} 80... Ka4 {[%clk 0:00:16.9]} 81. Ka2 {[%clk
0:00:53.5]} 81... Kb4 {[%clk 0:00:17.3]} 82. Ka1 {[%clk 0:00:53.1]} 82... Kb3
{[%clk 0:00:18.2]} 83. Kb1 {[%clk 0:00:53.3]} 83... a2+ {[%clk 0:00:19.1]} 84.
Ka1 {[%clk 0:00:53.6]} 84... Ka3 {[%clk 0:00:20]} 1/2-1/2

[Event "*** SCC Grand Prix: Titled Tuesday Blitz"]
[Site "Chess.com"]
[Date "2020.06.02"]
[Round "2"]
[White "Lestofante90"]
[Black "MPGM"]
[Result "1-0"]
[WhiteElo "2803"]
[BlackElo "2524"]
[TimeControl "180+1"]
[EndTime "10:19:13 PDT"]
[Termination "Lestofante90 won on time"]

1. e4 {[%clk 0:03:00.9]} 1... c6 {[%clk 0:02:56.1]} 2. d4 {[%clk 0:02:59.1]}
2... d5 {[%clk 0:02:54.5]} 3. Nc3 {[%clk 0:02:55.3]} 3... dxe4 {[%clk
0:02:52.7]} 4. Nxe4 {[%clk 0:02:54.5]} 4... Nf6 {[%clk 0:02:53.1]} 5. Nxf6+
{[%clk 0:02:50.3]} 5... exf6 {[%clk 0:02:54]} 6. c3 {[%clk 0:02:42]} 6... Bd6
{[%clk 0:02:54.1]} 7. Bd3 {[%clk 0:02:41.9]} 7... O-O {[%clk 0:02:53.4]} 8. Qc2
{[%clk 0:02:41.2]} 8... Re8+ {[%clk 0:02:53.5]} 9. Ne2 {[%clk 0:02:41.3]} 9...
h5 {[%clk 0:02:53.2]} 10. O-O {[%clk 0:02:38.8]} 10... Nd7 {[%clk 0:02:47.6]}
11. Be3 {[%clk 0:02:36.2]} 11... Nf8 {[%clk 0:02:46.8]} 12. Rad1 {[%clk
0:02:36.3]} 12... Qc7 {[%clk 0:02:42]} 13. h3 {[%clk 0:02:30.2]} 13... Be6
{[%clk 0:02:39.8]} 14. Rfe1 {[%clk 0:02:26.2]} 14... Qd7 {[%clk 0:02:33.3]} 15.
Nf4 {[%clk 0:02:19.8]} 15... g6 {[%clk 0:02:20.6]} 16. b3 {[%clk 0:01:36.3]}
16... Bc7 {[%clk 0:01:55.3]} 17. Be4 {[%clk 0:01:18.3]} 17... Qd6 {[%clk
0:01:53.4]} 18. c4 {[%clk 0:01:08]} 18... f5 {[%clk 0:01:44.3]} 19. Bd3 {[%clk
0:01:02.4]} 19... Rad8 {[%clk 0:01:40.1]} 20. h4 {[%clk 0:00:40.2]} 20... Bc8
{[%clk 0:01:36]} 21. d5 {[%clk 0:00:38.6]} 21... c5 {[%clk 0:01:33.8]} 22. Bc1
{[%clk 0:00:35.4]} 22... Nd7 {[%clk 0:01:20.6]} 23. g3 {[%clk 0:00:35.6]} 23...
Ne5 {[%clk 0:01:20.1]} 24. Kg2 {[%clk 0:00:35]} 24... Re7 {[%clk 0:01:13.9]} 25.
Bb2 {[%clk 0:00:34.4]} 25... Rde8 {[%clk 0:01:13.9]} 26. Qc3 {[%clk 0:00:29.9]}
26... f6 {[%clk 0:01:12.6]} 27. Re3 {[%clk 0:00:27.3]} 27... Kf7 {[%clk
0:01:00.8]} 28. Rde1 {[%clk 0:00:26.8]} 28... Ng4 {[%clk 0:01:00.9]} 29. Rxe7+
{[%clk 0:00:26.2]} 29... Rxe7 {[%clk 0:01:01.4]} 30. Rxe7+ {[%clk 0:00:17.2]}
30... Qxe7 {[%clk 0:01:00.8]} 31. Qd2 {[%clk 0:00:17.4]} 31... Be5 {[%clk
0:01:00.3]} 32. Nh3 {[%clk 0:00:15]} 32... Bxb2 {[%clk 0:00:59.4]} 33. Qxb2
{[%clk 0:00:15.9]} 33... Qe1 {[%clk 0:00:58.2]} 34. Qe2 {[%clk 0:00:14.5]} 34...
Qxe2 {[%clk 0:00:45.3]} 35. Bxe2 {[%clk 0:00:15.4]} 35... Ne5 {[%clk 0:00:45.5]}
36. f4 {[%clk 0:00:13.4]} 36... Ng4 {[%clk 0:00:45]} 37. Kf3 {[%clk 0:00:12.6]}
37... Ke7 {[%clk 0:00:42]} 38. Bd3 {[%clk 0:00:12.5]} 38... Kd6 {[%clk
0:00:41.7]} 39. Ng1 {[%clk 0:00:12.9]} 39... b5 {[%clk 0:00:30.5]} 40. cxb5
{[%clk 0:00:12.1]} 40... Kxd5 {[%clk 0:00:30.6]} 41. Ke2 {[%clk 0:00:11.2]}
41... Kd4 {[%clk 0:00:26.9]} 42. Kd2 {[%clk 0:00:11.3]} 42... Bb7 {[%clk
0:00:20.3]} 43. Ne2+ {[%clk 0:00:07.7]} 43... Kd5 {[%clk 0:00:20.9]} 44. a4
{[%clk 0:00:06.5]} 44... Nf2 {[%clk 0:00:17.1]} 45. Ke3 {[%clk 0:00:05.9]} 45...
Nd1+ {[%clk 0:00:16.2]} 46. Kd2 {[%clk 0:00:04.9]} 46... Nf2 {[%clk 0:00:16.5]}
47. a5 {[%clk 0:00:04.7]} 47... Kd6 {[%clk 0:00:15.4]} 48. Bc4 {[%clk
0:00:03.2]} 48... Ne4+ {[%clk 0:00:14.9]} 49. Ke3 {[%clk 0:00:03.7]} 49... Ke7
{[%clk 0:00:11]} 50. Bd3 {[%clk 0:00:04.6]} 50... Nd6 {[%clk 0:00:10.5]} 51. Nc3
{[%clk 0:00:04.9]} 51... Kd7 {[%clk 0:00:10.1]} 52. Bc4 {[%clk 0:00:05.1]} 52...
Bg2 {[%clk 0:00:06.2]} 53. Na4 {[%clk 0:00:05.1]} 53... Nb7 {[%clk 0:00:05.4]}
54. a6 {[%clk 0:00:05]} 54... Na5 {[%clk 0:00:05]} 55. Nxc5+ {[%clk 0:00:04.9]}
55... Kd6 {[%clk 0:00:05]} 56. Nd3 {[%clk 0:00:05.5]} 56... Be4 {[%clk
0:00:03.4]} 57. Kd4 {[%clk 0:00:05.8]} 57... Bxd3 {[%clk 0:00:03.6]} 58. Kxd3
{[%clk 0:00:06.7]} 58... Kc5 {[%clk 0:00:03.9]} 59. Kc3 {[%clk 0:00:07.1]} 59...
Kb6 {[%clk 0:00:02.6]} 60. b4 {[%clk 0:00:07.2]} 60... Nxc4 {[%clk 0:00:02.3]}
61. Kxc4 {[%clk 0:00:08.1]} 61... Kc7 {[%clk 0:00:02.1]} 62. Kc5 {[%clk
0:00:08.3]} 62... Kb8 {[%clk 0:00:03]} 63. Kd6 {[%clk 0:00:08.2]} 63... Kc8
{[%clk 0:00:03.2]} 64. Kc6 {[%clk 0:00:08.1]} 64... Kb8 {[%clk 0:00:03.5]} 65.
b6 {[%clk 0:00:09]} 65... Ka8 {[%clk 0:00:03.4]} 66. bxa7 {[%clk 0:00:08.2]}
66... Kxa7 {[%clk 0:00:03.5]} 67. b5 {[%clk 0:00:09.1]} 67... Ka8 {[%clk
0:00:03.7]} 68. Kc7 {[%clk 0:00:09.1]} 68... Ka7 {[%clk 0:00:03.4]} 69. b6+
{[%clk 0:00:10]} 69... Kxa6 {[%clk 0:00:04]} 70. b7 {[%clk 0:00:10.9]} 1-0

[Event "*** SCC Grand Prix: Titled Tuesday Blitz"]
[Site "Chess.com"]
[Date "2020.06.02"]
[Round "2"]
[White "Supernotar"]
[Black "grunbergmihai"]
[Result "1-0"]
[WhiteElo "2709"]
[BlackElo "2379"]
[TimeControl "180+1"]
[EndTime "10:19:15 PDT"]
[Termination "Supernotar won by resignation"]

1. d4 {[%clk 0:03:00.9]} 1... Nf6 {[%clk 0:02:59.6]} 2. c4 {[%clk 0:02:59.6]}
2... g6 {[%clk 0:02:59.7]} 3. Nc3 {[%clk 0:02:58.6]} 3... d5 {[%clk 0:02:59.9]}
4. cxd5 {[%clk 0:02:58.6]} 4... Nxd5 {[%clk 0:02:59.9]} 5. e4 {[%clk 0:02:58.9]}
5... Nxc3 {[%clk 0:02:59.7]} 6. bxc3 {[%clk 0:02:59.8]} 6... Bg7 {[%clk
0:03:00.4]} 7. Nf3 {[%clk 0:03:00.1]} 7... c5 {[%clk 0:03:00.3]} 8. Be3 {[%clk
0:03:00.1]} 8... O-O {[%clk 0:02:58]} 9. Qd2 {[%clk 0:03:00.1]} 9... Bg4 {[%clk
0:02:55.7]} 10. Rc1 {[%clk 0:02:58.9]} 10... Nc6 {[%clk 0:02:51.2]} 11. d5
{[%clk 0:02:57.5]} 11... Bxf3 {[%clk 0:02:46.6]} 12. gxf3 {[%clk 0:02:56.2]}
12... Ne5 {[%clk 0:02:46.5]} 13. Be2 {[%clk 0:02:56.4]} 13... c4 {[%clk
0:02:37.7]} 14. f4 {[%clk 0:02:53.7]} 14... Nd3+ {[%clk 0:02:37.1]} 15. Bxd3
{[%clk 0:02:53.3]} 15... cxd3 {[%clk 0:02:37.1]} 16. Qxd3 {[%clk 0:02:53.6]}
16... Qa5 {[%clk 0:02:27.5]} 17. O-O {[%clk 0:02:50]} 17... Rfc8 {[%clk
0:02:18.2]} 18. c4 {[%clk 0:02:45]} 18... Qxa2 {[%clk 0:02:17.1]} 19. e5 {[%clk
0:02:37.7]} 19... a5 {[%clk 0:01:52.5]} 20. c5 {[%clk 0:02:34.4]} 20... a4
{[%clk 0:01:46]} 21. d6 {[%clk 0:02:25.7]} 21... exd6 {[%clk 0:01:40.8]} 22.
cxd6 {[%clk 0:02:25.2]} 22... a3 {[%clk 0:01:30.5]} 23. d7 {[%clk 0:02:18.5]}
23... Rd8 {[%clk 0:01:16.5]} 24. Bb6 {[%clk 0:02:14.3]} 24... Qe6 {[%clk
0:01:11.9]} 25. Bxd8 {[%clk 0:02:10.6]} 25... Rxd8 {[%clk 0:01:10.9]} 26. Qxa3
{[%clk 0:01:44.8]} 26... Qxd7 {[%clk 0:01:10.5]} 27. Qf3 {[%clk 0:01:32.6]}
27... Qf5 {[%clk 0:01:06.5]} 28. Rfd1 {[%clk 0:01:24.4]} 28... Rxd1+ {[%clk
0:01:05.7]} 29. Rxd1 {[%clk 0:01:23.3]} 29... Bxe5 {[%clk 0:01:05.4]} 30. Rd5
{[%clk 0:00:56.9]} 30... Qxf4 {[%clk 0:01:00.9]} 31. Qxf4 {[%clk 0:00:53.7]}
31... Bxf4 {[%clk 0:01:01.8]} 32. Rb5 {[%clk 0:00:53.4]} 32... Kg7 {[%clk
0:01:01]} 33. Rxb7 {[%clk 0:00:53]} 33... h5 {[%clk 0:01:01]} 34. h3 {[%clk
0:00:52.9]} 34... Bg5 {[%clk 0:01:00]} 35. Kg2 {[%clk 0:00:52.6]} 35... Bf6
{[%clk 0:00:59.9]} 36. Kf3 {[%clk 0:00:52.8]} 36... Bd4 {[%clk 0:00:56.8]} 37.
Rd7 {[%clk 0:00:51.7]} 37... Bf6 {[%clk 0:00:56.3]} 38. Ke4 {[%clk 0:00:51.1]}
38... Bh4 {[%clk 0:00:55.8]} 39. f3 {[%clk 0:00:47.8]} 39... Bg3 {[%clk
0:00:54.5]} 40. Rb7 {[%clk 0:00:47.1]} 40... Kf6 {[%clk 0:00:52.7]} 41. Rb6+
{[%clk 0:00:46.3]} 41... Kg7 {[%clk 0:00:52.6]} 42. Ra6 {[%clk 0:00:43.8]} 42...
Bh2 {[%clk 0:00:51.2]} 43. f4 {[%clk 0:00:43.5]} 43... Bg1 {[%clk 0:00:49.7]}
44. f5 {[%clk 0:00:41.2]} 44... gxf5+ {[%clk 0:00:44.5]} 45. Kxf5 {[%clk
0:00:41.1]} 45... Bf2 {[%clk 0:00:44.1]} 46. Ke5 {[%clk 0:00:37.6]} 46... Bg3+
{[%clk 0:00:41.9]} 47. Kd5 {[%clk 0:00:37.2]} 47... f6 {[%clk 0:00:39.2]} 48.
Ke6 {[%clk 0:00:35.7]} 48... Kg6 {[%clk 0:00:39.2]} 49. Ra8 {[%clk 0:00:28.9]}
49... Kg5 {[%clk 0:00:36.1]} 50. Ra4 {[%clk 0:00:22.4]} 50... Be5 {[%clk
0:00:28.3]} 51. Kd5 {[%clk 0:00:16.3]} 51... h4 {[%clk 0:00:26.4]} 52. Rg4+
{[%clk 0:00:15.6]} 52... Kh5 {[%clk 0:00:25.8]} 53. Ke4 {[%clk 0:00:14.9]} 53...
Bg3 {[%clk 0:00:24.3]} 54. Kf5 {[%clk 0:00:14.9]} 54... Be5 {[%clk 0:00:22.8]}
55. Rg6 {[%clk 0:00:15]} 55... Bd4 {[%clk 0:00:20.3]} 56. Rg8 {[%clk 0:00:15]}
56... Kh6 {[%clk 0:00:16.5]} 57. Rh8+ {[%clk 0:00:15]} 57... Kg7 {[%clk
0:00:16.5]} 58. Rxh4 {[%clk 0:00:15.1]} 58... Be5 {[%clk 0:00:17.4]} 59. Rg4+
{[%clk 0:00:14.7]} 59... Kh6 {[%clk 0:00:17.5]} 60. Rh4+ {[%clk 0:00:13.6]}
60... Kg7 {[%clk 0:00:16.8]} 61. Rh5 {[%clk 0:00:13.5]} 61... Kf7 {[%clk
0:00:16.4]} 62. Rh7+ {[%clk 0:00:13.2]} 62... Kg8 {[%clk 0:00:16.3]} 63. Kg6
{[%clk 0:00:09.9]} 63... Kf8 {[%clk 0:00:16.3]} 64. Rb7 {[%clk 0:00:09]} 64...
Ke8 {[%clk 0:00:15.6]} 65. h4 {[%clk 0:00:09.2]} 65... Kf8 {[%clk 0:00:15.5]}
66. h5 {[%clk 0:00:09.6]} 66... f5 {[%clk 0:00:12.8]} 67. Kxf5 {[%clk 0:00:07]}
67... Bd4 {[%clk 0:00:11.5]} 68. Kg6 {[%clk 0:00:07.1]} 68... Bc5 {[%clk
0:00:09.4]} 69. h6 {[%clk 0:00:07]} 69... Bd4 {[%clk 0:00:06.7]} 70. Rb8+ {[%clk
0:00:06]} 70... Ke7 {[%clk 0:00:06.3]} 71. h7 {[%clk 0:00:06.5]} 1-0